bitfinex/quotes_BTCUSD_20251010
["timestamp","ask_amount","ask_price","bid_price","bid_amount"]
[1760056701804,0.19497514,121870.0,121860.0,0.83312825]
[1760056702044,0.42653514,121870.0,121860.0,0.83312825]
[1760056702234,0.19497514,121870.0,121860.0,0.83312825]
[1760056702443,0.42649514,121870.0,121860.0,0.83312825]
[1760056703261,0.19497514,121870.0,121860.0,0.83312825]
[1760056703470,0.42649514,121870.0,121860.0,0.83312825]
[1760056711645,0.19497514,121870.0,121860.0,0.83312825]
[1760056712051,0.19497514,121870.0,121860.0,0.91625031]
[1760056712202,0.19497514,121870.0,121860.0,1.40387186]
[1760056712412,0.19497514,121870.0,121860.0,1.14777031]
[1760056713596,0.19497514,121870.0,121860.0,1.14877031]
[1760056714348,0.19497514,121870.0,121860.0,1.14977031]
[1760056714725,0.19497514,121870.0,121860.0,0.91825031]
[1760056714977,0.19497514,121870.0,121860.0,1.14977031]
[1760056715691,0.19497514,121870.0,121860.0,0.91825031]
[1760056715932,0.19497514,121870.0,121860.0,1.14973031]
[1760056717777,0.19497514,121870.0,121860.0,0.94840221]
[1760056717959,0.19497514,121870.0,121860.0,1.43598376]
[1760056719717,0.19497514,121870.0,121860.0,1.77598376]
[1760056722173,0.19497514,121870.0,121860.0,1.54450376]
[1760056722386,0.19497514,121870.0,121860.0,1.77598376]
[1760056723428,0.19497514,121870.0,121860.0,1.54450376]
[1760056723647,0.19497514,121870.0,121860.0,1.62986376]
[1760056723844,0.19497514,121870.0,121860.0,1.86130376]
[1760056728355,0.19497514,121870.0,121860.0,1.62986376]
[1760056728556,0.19497514,121870.0,121860.0,1.86130376]
[1760056729267,0.19497514,121870.0,121860.0,1.54450376]
[1760056729476,0.19497514,121870.0,121860.0,1.86130376]
[1760056730175,0.19497514,121870.0,121860.0,1.77594376]
[1760056730373,0.19497514,121870.0,121860.0,1.86130376]
[1760056730547,0.19497514,121870.0,121860.0,1.54450376]
[1760056730744,0.19497514,121870.0,121860.0,1.86130376]
[1760056731362,0.19497514,121870.0,121860.0,1.54450376]
[1760056731628,0.19497514,121870.0,121860.0,1.51984221]
[1760056732397,0.19497514,121870.0,121860.0,1.28840221]
[1760056732612,0.19497514,121870.0,121860.0,1.51984221]
[1760056733914,0.19497514,121870.0,121860.0,1.28840221]
[1760056734132,0.19497514,121870.0,121860.0,1.51984221]
[1760056736488,0.19415137,121870.0,121860.0,1.51984221]
[1760056738552,0.19415137,121870.0,121860.0,1.28840221]
[1760056738772,0.19415137,121870.0,121860.0,1.51984221]
[1760056743197,0.19415137,121870.0,121860.0,1.28840221]
[1760056743421,0.19415137,121870.0,121860.0,1.51980221]
[1760056744476,0.19415137,121870.0,121860.0,1.54450376]
[1760056744702,0.19415137,121870.0,121860.0,1.77590376]
[1760056747537,0.19415137,121870.0,121860.0,1.34885026]
[1760056754639,0.19415137,121870.0,121860.0,1.00759911]
[1760056754847,0.19415137,121870.0,121860.0,1.34885026]
[1760056763347,0.19415137,121870.0,121860.0,1.45870141]
[1760056763557,0.19415137,121870.0,121860.0,1.34885026]
[1760056767910,0.19415137,121870.0,121860.0,1.11745026]
[1760056768115,0.19415137,121870.0,121860.0,1.34885026]
[1760056772387,0.19415137,121870.0,121860.0,1.43417026]
[1760056773753,0.19415137,121870.0,121860.0,1.11745026]
[1760056773949,0.19415137,121870.0,121860.0,1.43417026]
[1760056776294,0.19415137,121870.0,121860.0,1.20277026]
[1760056776642,0.19415137,121870.0,121860.0,1.43417026]
[1760056776847,0.19415137,121870.0,121860.0,1.34885026]
[1760056777062,0.19415137,121870.0,121860.0,1.43417026]
[1760056779777,0.19415137,121870.0,121860.0,1.11745026]
[1760056780040,0.19415137,121870.0,121860.0,1.43417026]
[1760056788565,0.19415137,121870.0,121860.0,1.50417026]
[1760056789771,0.19415137,121870.0,121860.0,1.50413026]
[1760056791456,0.19415137,121870.0,121860.0,1.75413026]
[1760056791616,0.19415137,121870.0,121860.0,1.09619911]
[1760056791830,0.19415137,121870.0,121860.0,1.66881026]
[1760056792181,0.19415137,121870.0,121860.0,1.43745026]
[1760056792386,0.19415137,121870.0,121860.0,1.66881026]
[1760056794359,0.19415137,121870.0,121860.0,1.43745026]
[1760056794561,0.19415137,121870.0,121860.0,1.66881026]
[1760056796141,0.19415137,121870.0,121860.0,1.43745026]
[1760056796297,0.19415137,121870.0,121860.0,1.66881026]
[1760056805798,0.19415137,121870.0,121860.0,1.32755911]
[1760056806352,0.19415137,121870.0,121860.0,1.66881026]
[1760056807515,0.19415137,121870.0,121860.0,1.83950219]
[1760056808535,0.19415137,121870.0,121860.0,1.60814219]
[1760056808881,0.19415137,121870.0,121860.0,1.83950219]
[1760056809555,0.19415137,121870.0,121860.0,1.09619911]
[1760056809763,0.19415137,121870.0,121860.0,1.83950219]
[1760056811574,0.19415137,121870.0,121860.0,1.60814219]
[1760056811956,0.19415137,121870.0,121860.0,1.16353385]
[1760056812371,0.19415137,121870.0,121860.0,1.50353385]
[1760056813664,0.19415137,121870.0,121860.0,1.24756231]
[1760056813802,0.19415137,121870.0,121860.0,1.50353385]
[1760056814610,0.19415137,121870.0,121860.0,1.16353385]
[1760056814819,0.19415137,121870.0,121860.0,1.24353065]
[1760056815497,0.19415137,121870.0,121860.0,1.26814219]
[1760056815745,0.19415137,121870.0,121860.0,1.24353065]
[1760056816368,0.19415137,121870.0,121860.0,0.98755911]
[1760056816570,0.19415137,121870.0,121860.0,1.24353065]
[1760056817726,0.19415137,121870.0,121860.0,1.17353065]
[1760056818660,0.19415137,121870.0,121860.0,1.17357065]
[1760056819527,0.19415137,121870.0,121860.0,0.65604721]
[1760056819729,0.19415137,121870.0,121860.0,0.80745041]
[1760056820340,0.6142322,121870.0,121860.0,0.32880559]
[1760056820483,0.6142322,121870.0,121860.0,0.30474559]
[1760056822643,0.35826066,121870.0,121860.0,0.32826559]
[1760056822867,0.8456322,121870.0,121860.0,0.40826239]
[1760056823433,0.58966066,121870.0,121860.0,0.40826239]
[1760056823872,0.58966066,121870.0,121860.0,0.32826559]
[1760056826581,0.8456322,121870.0,121860.0,0.32826559]
[1760056826780,0.8456322,121870.0,121860.0,0.30474559]
[1760056827017,0.58966066,121870.0,121860.0,0.30474559]
[1760056827402,0.58966066,121870.0,121860.0,0.32826559]
[1760056827964,0.8456322,121870.0,121860.0,0.30474559]
[1760056828845,0.8456322,121870.0,121860.0,0.38474239]
[1760056829275,0.8456322,121870.0,121860.0,0.40826239]
[1760056831653,0.8456322,121870.0,121860.0,0.38474239]
[1760056831851,0.8456322,121870.0,121860.0,0.30474559]
[1760056832271,0.6142322,121870.0,121860.0,0.30474559]
[1760056832491,0.8456322,121870.0,121860.0,0.30474559]
[1760056834947,0.58966066,121870.0,121860.0,0.30474559]
[1760056835171,0.8456322,121870.0,121860.0,0.30474559]
[1760056842872,0.6142322,121870.0,121860.0,0.30474559]
[1760056843052,0.8456322,121870.0,121860.0,0.30474559]
[1760056844154,0.35826066,121870.0,121860.0,0.30474559]
[1760056844353,0.8456322,121870.0,121860.0,0.30474559]
[1760056845195,0.58966066,121870.0,121860.0,0.32912559]
[1760056845401,0.58966066,121870.0,121860.0,0.40912239]
[1760056849349,0.8456322,121870.0,121860.0,0.40912239]
[1760056849557,0.6142322,121870.0,121860.0,0.40912239]
[1760056849819,0.8456322,121870.0,121860.0,0.40912239]
[1760056850477,0.8456322,121870.0,121860.0,0.32912559]
[1760056854439,0.58966066,121870.0,121860.0,0.32912559]
[1760056854699,0.8456322,121870.0,121860.0,0.32912559]
[1760056855558,0.58966066,121870.0,121860.0,0.32912559]
[1760056864914,0.35826066,121870.0,121860.0,0.32912559]
[1760056865127,0.58966066,121870.0,121860.0,0.82527309]
[1760056866404,0.19415137,121870.0,121860.0,0.82527309]
[1760056866623,0.58966066,121870.0,121860.0,0.82527309]
[1760056866827,0.35826066,121870.0,121860.0,0.82527309]
[1760056867028,0.58966066,121870.0,121860.0,0.82527309]
[1760056869530,0.58966066,121870.0,121860.0,0.56930155]
[1760056869531,0.35826066,121870.0,121860.0,0.56930155]
[1760056869731,0.58966066,121870.0,121860.0,0.49324835]
[1760056871533,0.35826066,121870.0,121860.0,0.49324835]
[1760056871739,0.58966066,121870.0,121860.0,0.49324835]
[1760056873170,0.42555137,121870.0,121860.0,0.49324835]
[1760056873879,0.19415137,121870.0,121860.0,0.49324835]
[1760056874082,0.42555137,121870.0,121860.0,0.57324515]
[1760056880365,0.19415137,121870.0,121860.0,0.99774694]
[1760056880574,0.19415137,121870.0,121860.0,1.22914694]
[1760056880896,0.19415137,121870.0,121860.0,0.99774694]
[1760056881103,0.19415137,121870.0,121860.0,1.22914694]
[1760056881979,0.19415137,121870.0,121860.0,1.2282451]
[1760056885302,0.19415137,121870.0,121860.0,0.9968451]
[1760056885538,0.19415137,121870.0,121860.0,1.2282451]
[1760056889950,0.19415137,121870.0,121860.0,0.9968451]
[1760056890120,0.19415137,121870.0,121860.0,1.2282051]
[1760056890327,0.19415137,121870.0,121860.0,1.258357]
[1760056890733,0.19415137,121870.0,121860.0,1.026997]
[1760056890974,0.19415137,121870.0,121860.0,0.91697727]
[1760056891255,0.19415137,121870.0,121860.0,1.026997]
[1760056891496,0.19415137,121870.0,121860.0,1.258357]
[1760056891696,0.19415137,121870.0,121860.0,1.026997]
[1760056891899,0.19415137,121870.0,121860.0,1.258357]
[1760056892112,0.19415137,121870.0,121860.0,1.1783602]
[1760056892968,0.19415137,121870.0,121860.0,0.9470002]
[1760056893173,0.19415137,121870.0,121860.0,1.1783602]
[1760056893404,0.19415137,121870.0,121860.0,0.9470002]
[1760056893609,0.19415137,121870.0,121860.0,1.1783602]
[1760056893809,0.19415137,121870.0,121860.0,1.258357]
[1760056897673,0.19415137,121870.0,121860.0,1.026997]
[1760056897812,0.19415137,121870.0,121860.0,1.258357]
[1760056898765,0.19415137,121870.0,121860.0,1.026997]
[1760056898962,0.19415137,121870.0,121860.0,1.258357]
[1760056900021,0.19415137,121870.0,121860.0,1.026997]
[1760056900230,0.19415137,121870.0,121860.0,0.91697727]
[1760056900432,0.19415137,121870.0,121860.0,0.80682857]
[1760056901268,0.42551137,121870.0,121860.0,0.57546857]
[1760056908802,0.19415137,121870.0,121860.0,0.57546857]
[1760056909010,0.42551137,121870.0,121860.0,0.57546857]
[1760056910466,0.35826066,121870.0,121860.0,0.28858375]
[1760056910639,0.58962066,121870.0,121860.0,0.27818559]
[1760056911024,0.58962066,121870.0,121860.0,0.29372559]
[1760056911229,0.58962066,121870.0,121860.0,0.45784835]
[1760056911497,0.58962066,121870.0,121860.0,0.46945835]
[1760056912134,0.58962066,121870.0,121860.0,0.49293835]
[1760056912135,0.42551137,121870.0,121860.0,0.49293835]
[1760056912345,0.42551137,121870.0,121860.0,0.57293515]
[1760056912569,0.19415137,121870.0,121860.0,0.57293515]
[1760056912778,0.42551137,121870.0,121860.0,0.57293515]
[1760056913977,0.42551137,121870.0,121860.0,0.49293835]
[1760056915713,0.19415137,121870.0,121860.0,0.49293835]
[1760056915903,0.42551137,121870.0,121860.0,0.49293835]
[1760056918994,0.35826066,121870.0,121860.0,0.49293835]
[1760056919218,0.58962066,121870.0,121860.0,0.49293835]
[1760056920287,0.58962066,121870.0,121860.0,0.30533559]
[1760056920883,0.35826066,121870.0,121860.0,0.30533559]
[1760056921087,0.58962066,121870.0,121860.0,0.46945835]
[1760056921929,0.35826066,121870.0,121860.0,0.46945835]
[1760056922159,0.58962066,121870.0,121860.0,0.46945835]
[1760056928631,0.58962066,121870.0,121860.0,0.49397835]
[1760056931215,0.58962066,121870.0,121860.0,0.8300559]
[1760056932450,0.58962066,121870.0,121860.0,0.7500591]
[1760056932670,0.58962066,121870.0,121860.0,0.49397835]
[1760056933715,0.35826066,121870.0,121860.0,0.49397835]
[1760056933895,0.58962066,121870.0,121860.0,0.49397835]
[1760056935278,0.35826066,121870.0,121860.0,0.49397835]
[1760056935478,0.58962066,121870.0,121860.0,0.49397835]
[1760056942129,0.35826066,121870.0,121860.0,0.30533559]
[1760056942336,0.84570141,121870.0,121860.0,0.30533559]
[1760056943622,0.84570141,121870.0,121860.0,0.46945835]
[1760056945056,0.84570141,121870.0,121860.0,0.30533559]
[1760056945257,0.58962066,121870.0,121860.0,0.30533559]
[1760056945459,0.84570141,121870.0,121860.0,0.30533559]
[1760056946101,0.58958066,121870.0,121860.0,0.46945835]
[1760056946676,0.58958066,121870.0,121860.0,0.49397835]
[1760056948090,0.58958066,121870.0,121860.0,0.46945835]
[1760056949958,0.58958066,121870.0,121860.0,0.49397835]
[1760056951061,0.58958066,121870.0,121860.0,0.46945835]
[1760056951610,0.35826066,121870.0,121860.0,0.30533559]
[1760056951820,0.84566141,121870.0,121860.0,0.27818559]
[1760056953925,0.84566141,121870.0,121860.0,0.29331559]
[1760056955568,0.84566141,121870.0,121860.0,0.27818559]
[1760056955816,0.61434141,121870.0,121860.0,0.27818559]
[1760056956037,0.84566141,121870.0,121860.0,0.27618559]
[1760056958238,0.84566141,121870.0,121860.0,0.2515348]
[1760056960380,0.85385504,121870.0,121860.0,0.2515348]
[1760056961316,1.10993579,121870.0,121860.0,0.2515348]
[1760056962087,0.85385504,121870.0,121860.0,0.2515348]
[1760056965207,0.59777429,121870.0,121860.0,0.2515348]
[1760056965420,1.10997579,121870.0,121860.0,0.2515348]
[1760056965627,0.87861579,121870.0,121860.0,0.2515348]
[1760056965844,1.20063515,121870.0,121860.0,0.2515348]
[1760056966417,1.19295083,121870.0,121860.0,0.2515348]
[1760056967164,1.11295403,121870.0,121860.0,0.2515348]
[1760056967604,0.85687328,121870.0,121860.0,0.2515348]
[1760056968446,0.86455526,121870.0,121860.0,0.2515348]
[1760056969343,0.85687328,121870.0,121860.0,0.2515348]
[1760056970264,1.11295403,121870.0,121860.0,0.2515348]
[1760056972069,1.19295083,121870.0,121860.0,0.2515348]
[1760056973883,1.61607289,121870.0,121860.0,0.2515348]
[1760056974137,0.16416317,121830.0,121810.0,0.03657]
[1760056974357,0.6516174,121820.0,121810.0,0.05363037]
[1760056974559,0.84576877,121820.0,121810.0,0.05363037]
[1760056975407,0.84576877,121820.0,121810.0,0.05613539]
[1760056975612,0.84576877,121820.0,121810.0,0.22032552]
[1760056975816,0.84576877,121820.0,121810.0,0.22132552]
[1760056976034,0.84576877,121820.0,121810.0,0.21932552]
[1760056976255,0.84576877,121820.0,121810.0,0.05513539]
[1760056976461,0.84576877,121820.0,121810.0,0.05613539]
[1760056976873,0.84576877,121820.0,121810.0,0.22032552]
[1760056977086,0.19415137,121820.0,121810.0,0.22032552]
[1760056977326,0.42551137,121820.0,121810.0,0.56875725]
[1760056977668,0.42551137,121820.0,121810.0,0.50021627]
[1760056977875,0.19415137,121820.0,121810.0,0.50021627]
[1760056978373,0.42551137,121820.0,121810.0,0.50021627]
[1760056979703,0.42551137,121820.0,121810.0,0.50831899]
[1760056980067,0.42551137,121820.0,121810.0,0.51087835]
[1760056980534,0.42551137,121820.0,121810.0,0.67399721]
[1760056981727,0.42551137,121820.0,121810.0,0.59400041]
[1760056981931,0.42555137,121820.0,121810.0,0.33791966]
[1760056982138,0.42555137,121820.0,121810.0,0.59400041]
[1760056982349,0.19415137,121820.0,121810.0,0.59400041]
[1760056982576,0.42555137,121820.0,121810.0,0.67399721]
[1760056983985,0.42555137,121820.0,121810.0,0.59400041]
[1760056986333,0.19415137,121820.0,121810.0,0.59400041]
[1760056986794,0.42555137,121820.0,121810.0,0.59400041]
[1760056990164,0.19415137,121820.0,121810.0,0.33791966]
[1760056990372,0.42555137,121820.0,121810.0,0.59400041]
[1760056991563,0.42555137,121820.0,121810.0,0.33791966]
[1760056997764,0.19415137,121820.0,121810.0,0.32981694]
[1760056997976,0.42555137,121820.0,121810.0,0.33079694]
[1760056999873,0.42555137,121820.0,121810.0,0.41902955]
[1760057000172,0.42555137,121820.0,121810.0,0.7606956]
[1760057001080,0.19415137,121820.0,121810.0,0.7606956]
[1760057001293,0.42555137,121820.0,121810.0,0.7606956]
[1760057001616,0.19415137,121820.0,121810.0,0.7606956]
[1760057001843,0.42555137,121820.0,121810.0,0.7606956]
[1760057002840,0.19415137,121820.0,121810.0,0.7606956]
[1760057003475,0.19415137,121820.0,121810.0,0.41902955]
[1760057003695,0.19415137,121820.0,121810.0,0.6806988]
[1760057006414,0.19415137,121820.0,121810.0,0.33903275]
[1760057006643,0.19415137,121820.0,121810.0,0.9120988]
[1760057008367,0.19415137,121820.0,121810.0,0.33903275]
[1760057008571,0.19415137,121820.0,121810.0,0.9120988]
[1760057008995,0.19415137,121820.0,121810.0,0.56219694]
[1760057009845,0.19415137,121820.0,121810.0,0.57052875]
[1760057010073,0.19415137,121820.0,121810.0,0.56219694]
[1760057010281,0.19415137,121820.0,121810.0,0.24767488]
[1760057010499,0.42555137,121820.0,121810.0,0.24767488]
[1760057010900,0.19415137,121820.0,121810.0,0.22288488]
[1760057011105,0.42555137,121820.0,121810.0,0.24767488]
[1760057015420,0.19415137,121820.0,121810.0,0.24767488]
[1760057015645,0.42555137,121820.0,121810.0,0.24767488]
[1760057015849,0.42555137,121820.0,121810.0,0.58934093]
[1760057019594,0.42555137,121820.0,121810.0,0.24767488]
[1760057026290,0.19415137,121820.0,121810.0,0.24767488]
[1760057026490,0.42555137,121820.0,121810.0,0.24767488]
[1760057030440,0.19415137,121820.0,121810.0,0.24767488]
[1760057030709,0.42555137,121820.0,121810.0,0.24767488]
[1760057031117,0.42555137,121820.0,121810.0,0.66933773]
[1760057031316,0.42555137,121820.0,121810.0,0.58934093]
[1760057031517,0.42555137,121820.0,121810.0,0.24767488]
[1760057033770,0.42555137,121820.0,121810.0,0.58934093]
[1760057035031,0.42555137,121820.0,121810.0,0.24767488]
[1760057037601,0.19415137,121820.0,121810.0,0.24767488]
[1760057037886,0.58972802,121820.0,121810.0,0.22288488]
[1760057038988,0.93965617,121820.0,121810.0,0.03012475]
[1760057039197,0.93139407,121820.0,121810.0,0.03012475]
[1760057040040,0.93139407,121820.0,121810.0,0.00546438]
[1760057043139,0.93139407,121820.0,121810.0,0.00446438]
[1760057044553,0.93139407,121820.0,121810.0,0.00346438]
[1760057044767,0.69999407,121820.0,121810.0,0.00346438]
[1760057044973,1.01679407,121820.0,121810.0,0.00346438]
[1760057051715,1.1877966,121820.0,121810.0,0.00346438]
[1760057054847,0.67512802,121820.0,121810.0,0.00346438]
[1760057055071,1.1877966,121820.0,121810.0,0.00346438]
[1760057055290,0.93146231,121820.0,121810.0,0.00346438]
[1760057058019,0.93146231,121820.0,121810.0,0.01898438]
[1760057061571,0.61466231,121820.0,121810.0,0.01898438]
[1760057061865,0.93146231,121820.0,121810.0,0.01898438]
[1760057064086,0.67512802,121820.0,121810.0,0.01898438]
[1760057064253,0.93146231,121820.0,121810.0,0.01898438]
[1760057067600,0.93146231,121820.0,121810.0,0.0436484]
[1760057069284,0.35832802,121820.0,121810.0,0.0549984]
[1760057069487,0.93146231,121820.0,121810.0,0.10611996]
[1760057069731,0.93146231,121820.0,121810.0,0.0549984]
[1760057072356,0.61466231,121820.0,121810.0,0.21918853]
[1760057072578,0.19415137,121820.0,121810.0,0.49842282]
[1760057072804,0.42555137,121820.0,121810.0,0.49842282]
[1760057073477,0.19415137,121820.0,121810.0,0.49842282]
[1760057073730,0.42555137,121820.0,121810.0,0.49842282]
[1760057074467,0.42555137,121820.0,121810.0,0.32208533]
[1760057074688,0.42555137,121820.0,121810.0,0.57841962]
[1760057074896,0.42555137,121820.0,121810.0,0.49842282]
[1760057082140,0.58972802,121820.0,121810.0,0.24208853]
[1760057082965,0.42555137,121820.0,121810.0,0.24208853]
[1760057084749,0.58972802,121820.0,121810.0,0.24208853]
[1760057086182,0.84606231,121820.0,121810.0,0.24208853]
[1760057087493,0.58972802,121820.0,121810.0,0.24208853]
[1760057090106,0.35832802,121820.0,121810.0,0.24208853]
[1760057090313,0.58972802,121820.0,121810.0,0.24208853]
[1760057090750,0.84606231,121820.0,121810.0,0.0778984]
[1760057093277,0.58972802,121820.0,121810.0,0.0778984]
[1760057093477,0.84606231,121820.0,121810.0,0.0778984]
[1760057094352,0.58972802,121820.0,121810.0,0.0778984]
[1760057094570,0.84606231,121820.0,121810.0,0.0778984]
[1760057095853,0.61466231,121820.0,121810.0,0.0778984]
[1760057096065,0.84606231,121820.0,121810.0,0.0778984]
[1760057097102,0.61466231,121820.0,121810.0,0.0778984]
[1760057097509,0.84606231,121820.0,121810.0,0.0778984]
[1760057100759,0.61466231,121820.0,121810.0,0.0778984]
[1760057100942,0.84606231,121820.0,121810.0,0.0778984]
[1760057101365,0.84606231,121820.0,121810.0,0.0549984]
[1760057101818,0.61466231,121820.0,121810.0,0.0549984]
[1760057102036,0.84606231,121820.0,121810.0,0.0549984]
[1760057102482,0.8709966,121820.0,121810.0,0.0281284]
[1760057102725,1.1023966,121820.0,121810.0,0.0281284]
[1760057102942,0.8709966,121820.0,121810.0,0.00346438]
[1760057103163,1.1023966,121820.0,121810.0,0.00346438]
[1760057103564,0.8709966,121820.0,121810.0,0.00346438]
[1760057103769,1.1823934,121820.0,121810.0,0.00346438]
[1760057107004,0.9509934,121820.0,121810.0,0.00346438]
[1760057107232,1.1823934,121820.0,121810.0,0.00346438]
[1760057108901,1.26551546,121820.0,121810.0,0.00346438]
[1760057109068,1.2684937,121820.0,121810.0,0.00346438]
[1760057112158,1.6084937,121820.0,121810.0,0.00346438]
[1760057112725,1.63316046,121820.0,121810.0,0.00346438]
[1760057113141,1.65809475,121820.0,121810.0,0.00346438]
[1760057113383,1.88949475,121820.0,121810.0,0.00346438]
[1760057113595,1.46242974,121820.0,121810.0,0.00346438]
[1760057113784,1.47011152,121820.0,121810.0,0.00346438]
[1760057114217,1.46242974,121820.0,121810.0,0.00346438]
[1760057115218,1.54782974,121820.0,121810.0,0.00346438]
[1760057115606,1.54786974,121820.0,121810.0,0.00346438]
[1760057115978,1.31642974,121820.0,121810.0,0.00346438]
[1760057116108,1.54786974,121820.0,121810.0,0.00346438]
[1760057116318,1.60907648,121820.0,121810.0,0.00346438]
[1760057116714,1.29223648,121820.0,121810.0,0.00346438]
[1760057116922,1.60907648,121820.0,121810.0,0.00346438]
[1760057117117,1.29223648,121820.0,121810.0,0.00346438]
[1760057117361,1.60907648,121820.0,121810.0,0.00346438]
[1760057117722,1.37763648,121820.0,121810.0,0.00346438]
[1760057118023,1.60907648,121820.0,121810.0,0.00346438]
[1760057119118,1.63211252,121820.0,121810.0,0.00346438]
[1760057119771,1.97379252,121820.0,121810.0,0.00346438]
[1760057120400,1.54671252,121820.0,121810.0,0.00346438]
[1760057120609,1.97379252,121820.0,121810.0,0.00346438]
[1760057125137,1.97379268,121820.0,121810.0,0.00346438]
[1760057125338,1.97379448,121820.0,121810.0,0.00346438]
[1760057130593,1.31527448,121820.0,121810.0,0.00346438]
[1760057130799,1.97379448,121820.0,121810.0,0.00346438]
[1760057132754,1.31527448,121820.0,121810.0,0.00346438]
[1760057132962,1.97379448,121820.0,121810.0,0.00346438]
[1760057136087,2.08429234,121820.0,121810.0,0.00346438]
[1760057136299,2.31573234,121820.0,121810.0,0.00346438]
[1760057136514,1.97379448,121820.0,121810.0,0.00346438]
[1760057136996,1.97081624,121820.0,121810.0,0.00346438]
[1760057137849,1.9708357,121820.0,121810.0,0.00346438]
[1760057138373,1.9718357,121820.0,121810.0,0.00346438]
[1760057139075,1.9708357,121820.0,121810.0,0.00346438]
[1760057139471,1.9728357,121820.0,121810.0,0.00346438]
[1760057139691,1.97283742,121820.0,121810.0,0.00346438]
[1760057140344,1.74139742,121820.0,121810.0,0.00346438]
[1760057140562,2.02212742,121820.0,121810.0,0.00346438]
[1760057140817,1.97287742,121820.0,121810.0,0.00346438]
[1760057141252,1.97187742,121820.0,121810.0,0.00346438]
[1760057142016,1.97485566,121820.0,121810.0,0.00346438]
[1760057143434,1.97585566,121820.0,121810.0,0.00346438]
[1760057148659,1.31729566,121820.0,121810.0,0.00346438]
[1760057148897,1.97585566,121820.0,121810.0,0.00346438]
[1760057151035,1.31729566,121820.0,121810.0,0.00346438]
[1760057151269,1.97585566,121820.0,121810.0,0.00346438]
[1760057153884,1.97588554,121820.0,121810.0,0.00346438]
[1760057166110,2.41786339,121820.0,121810.0,1e-08]
[1760057166334,2.09366766,121820.0,121810.0,1e-08]
[1760057168075,2.09367022,121820.0,121810.0,1e-08]
[1760057168283,2.25927997,121820.0,121810.0,1e-08]
[1760057168497,2.49075997,121820.0,121810.0,1e-08]
[1760057172114,2.48778173,121820.0,121810.0,1e-08]
[1760057173018,2.48715573,121820.0,121810.0,1e-08]
[1760057173362,2.38715574,121820.0,121810.0,1e-08]
[1760057173564,2.48715573,121820.0,121810.0,1e-08]
[1760057173867,2.38715574,121820.0,121810.0,1e-08]
[1760057174078,2.25567573,121820.0,121810.0,1e-08]
[1760057174281,2.48715573,121820.0,121810.0,1e-08]
[1760057174900,2.48715573,121820.0,121800.0,1e-08]
[1760057174901,0.70863201,121810.0,121800.0,1e-08]
[1760057175177,1.98788956,121810.0,121800.0,1e-08]
[1760057175375,1.30401384,121810.0,121800.0,1e-08]
[1760057175798,1.32868928,121810.0,121800.0,1e-08]
[1760057176023,1.75592928,121810.0,121800.0,1e-08]
[1760057176435,1.75692928,121810.0,121800.0,1e-08]
[1760057176634,1.67148928,121810.0,121800.0,1e-08]
[1760057176850,1.75792928,121810.0,121800.0,1e-08]
[1760057177116,1.76090752,121810.0,121800.0,1e-08]
[1760057178276,1.66090753,121810.0,121800.0,1e-08]
[1760057178720,1.76090752,121810.0,121800.0,1e-08]
[1760057179596,1.66090753,121810.0,121800.0,1e-08]
[1760057179814,1.76090752,121810.0,121800.0,1e-08]
[1760057180540,1.76090752,121810.0,121800.0,0.00051203]
[1760057180731,1.10218752,121810.0,121800.0,0.00051203]
[1760057180986,2.53053778,121810.0,121800.0,0.00051203]
[1760057181928,2.53049778,121810.0,121800.0,0.00051203]
[1760057183040,2.43049779,121810.0,121800.0,0.00051203]
[1760057183269,2.96864805,121810.0,121800.0,1e-08]
[1760057183489,2.53049778,121810.0,121800.0,1e-08]
[1760057184395,2.52949778,121810.0,121800.0,1e-08]
[1760057184620,2.53049778,121810.0,121800.0,1e-08]
[1760057185270,3.29912804,121810.0,121800.0,1e-08]
[1760057185501,3.3390132,121810.0,121800.0,1e-08]
[1760057185717,3.3400132,121810.0,121800.0,1e-08]
[1760057185930,2.6813332,121810.0,121800.0,1e-08]
[1760057186145,3.6820532,121810.0,121800.0,1e-08]
[1760057188282,3.65987853,121810.0,121800.0,1e-08]
[1760057190092,3.65985909,121810.0,121800.0,1e-08]
[1760057190960,3.65688085,121810.0,121800.0,1e-08]
[1760057193633,3.65684307,121810.0,121800.0,1e-08]
[1760057196016,3.66782177,121810.0,121800.0,1e-08]
[1760057199849,3.68999644,121810.0,121800.0,1e-08]
[1760057201098,3.68899644,121810.0,121800.0,1e-08]
[1760057202988,3.68999644,121810.0,121800.0,1e-08]
[1760057203865,3.6790182,121810.0,121800.0,1e-08]
[1760057206203,3.67901862,121810.0,121800.0,1e-08]
[1760057208360,3.67133915,121810.0,121800.0,1e-08]
[1760057208568,3.67901884,121810.0,121800.0,1e-08]
[1760057208882,3.68999708,121810.0,121800.0,1e-08]
[1760057210511,3.69007708,121810.0,121800.0,1e-08]
[1760057211290,3.71962192,121810.0,121800.0,1e-08]
[1760057211499,3.71962523,121810.0,121800.0,1e-08]
[1760057214675,3.71194223,121810.0,121800.0,1e-08]
[1760057214936,3.71963163,121810.0,121800.0,1e-08]
[1760057215221,3.69745696,121810.0,121800.0,1e-08]
[1760057217203,3.68647872,121810.0,121800.0,1e-08]
[1760057217433,3.68648341,121810.0,121800.0,1e-08]
[1760057218470,3.66343351,121810.0,121800.0,1e-08]
[1760057218908,3.68651585,121810.0,121800.0,1e-08]
[1760057219117,3.67882174,121810.0,121800.0,1e-08]
[1760057219328,3.66343351,121810.0,121800.0,1e-08]
[1760057220185,3.67882177,121810.0,121800.0,1e-08]
[1760057220407,3.66343351,121810.0,121800.0,1e-08]
[1760057221082,3.68643594,121810.0,121800.0,1e-08]
[1760057221711,3.68643605,121810.0,121800.0,1e-08]
[1760057222217,3.69741429,121810.0,121800.0,1e-08]
[1760057225958,2.69618403,121810.0,121800.0,1e-08]
[1760057226202,2.92778403,121810.0,121800.0,1e-08]
[1760057227851,2.91680579,121810.0,121800.0,1e-08]
[1760057228923,2.68520579,121810.0,121800.0,1e-08]
[1760057229137,2.91680579,121810.0,121800.0,1e-08]
[1760057231112,2.68520579,121810.0,121800.0,1e-08]
[1760057231333,2.91680579,121810.0,121800.0,1e-08]
[1760057231768,3.68643605,121810.0,121800.0,1e-08]
[1760057232213,3.68639605,121810.0,121800.0,1e-08]
[1760057232443,2.91676579,121810.0,121800.0,1e-08]
[1760057232663,3.68639605,121810.0,121800.0,1e-08]
[1760057232898,3.69737429,121810.0,121800.0,1e-08]
[1760057237496,2.84241589,121810.0,121800.0,1e-08]
[1760057240319,2.84241425,121810.0,121800.0,1e-08]
[1760057242468,2.61085425,121810.0,121800.0,1e-08]
[1760057242669,2.84241425,121810.0,121800.0,1e-08]
[1760057244147,2.84241328,121810.0,121800.0,1e-08]
[1760057248738,2.83143504,121810.0,121800.0,1e-08]
[1760057249618,0.84638163,121780.0,121770.0,0.0004]
[1760057249803,1.54314579,121780.0,121770.0,0.00090466]
[1760057250270,1.31154579,121780.0,121770.0,0.00244116]
[1760057250487,1.54643633,121780.0,121770.0,0.00244116]
[1760057251314,1.54743633,121780.0,121770.0,0.00244116]
[1760057251931,1.60916195,121780.0,121770.0,0.00244116]